Cogmind - Beta 10 X2 --- EXPLORER MODE // 2020.07.18 @ 21:17:13 // Experiment/BattleRoyale Player: Minty Result: Core destroyed Performance ------------- Evolutions (0) 0 Regions Visited (0) 0 Robots Destroyed (3) 15 Value Destroyed (1500) 1500 Prototype IDs (2) 40 Alien Tech Used (0) 0 Bonus (0) 0 TOTAL SCORE: 1555 Bonus ------- None Cogmind --------- Core Integrity 0/250 Matter 222/300 Energy 70/220 System Corruption 0% Temperature Cool (7407) Movement Core (1700) Ox33 Location -5/Wartown Parts ------- > --- POWER (2) -------- Light Nuclear Core Light Fission Core > --- PROPULSION (5) --- Advanced Heavy Treads Biometal Heavy Treads > --- UTILITY (7) ------ Advanced Heat Sink Experimental Cooling System Advanced Coolant Injector Cloaking Device Medium Reactive Plating Heavy Reactive Plating > --- WEAPON (4) ------- Beamcaster KE Penetrator Heavy Gauss Cannon Long-range Missile Launcher > --- INVENTORY (4) ---- (None) Peak State ------------ > --- POWER ------------ Light Nuclear Core Light Fission Core > --- PROPULSION ------- Advanced Heavy Treads Biometal Heavy Treads > --- UTILITY ---------- Advanced Heat Sink Experimental Cooling System Advanced Coolant Injector Cloaking Device Medium Reactive Plating Heavy Reactive Plating > --- WEAPON ----------- Beamcaster KE Penetrator Heavy Gauss Cannon Long-range Missile Launcher > --- INVENTORY -------- (None) [Rating: 104] Favorites ----------- Power Light Nuclear Core Power Core Light Nuclear Core Propulsion Advanced Heavy Treads Treads Advanced Heavy Treads Leg Biometal Leg Wheel Centrium Wheel Flight Unit Nuclear Pulse Thruster Utility Cloaking Device Device Cloaking Device Storage Large Storage Unit Protection Heavy Reactive Plating Weapon Beamcaster Energy Gun Beamcaster Ballistic Gun KE Penetrator Ballistic Cannon Heavy Gauss Cannon Launcher Long-range Missile Launcher Build | -5 ------- Run | Tow Slots Evolved . | . Power . | . Propulsion . | . Utility . | . Weapon . | . Parts Attached 11 | 11 Power . | . Engine . | . Core . | . Reactor . | . Propulsion 3 | 3 Treads 2 | 2 Leg 1 | 1 Wheel . | . Hover . | . Flight . | . Utility 6 | 6 Device 4 | 4 Storage . | . Processor . | . Hackware . | . Protection 2 | 2 Artifact . | . Weapon 2 | 2 Energy Gun . | . Energy Cannon . | . Ballistic Gun . | . Ballistic Cannon 1 | 1 Launcher 1 | 1 Special Weapon . | . Impact Weapon . | . Slashing Weapon . | . Piercing Weapon . | . Special Melee Weapon . | . Unidentified Prototypes 1 | 1 Parts Lost . | . Power . | . Propulsion . | . Utility . | . Weapon . | . Highest Loss Streak . | . Average Slot Usage (%) 75 | 75 Core 11 | 11 Treads 9 | 9 Leg 1 | 1 Device 20 | 20 Storage 2 | 2 Protection 8 | 8 Energy Gun 6 | 6 Ballistic Gun 5 | 5 Ballistic Cannon 4 | 4 Launcher 1 | 1 Naked Turns . | . Heaviest Build 100 | 100 Greatest Support 145 | 145 Greatest Overweight (x) 33 | 33 Average Overweight (x) . | . Largest Inventory Capacity 14 | 14 Average Capacity 6 | 6 Most Carried 1 | 1 Average Carried . | . Final Capacity 4 | 4 Final Carried . | . Class Distribution -------------------- 87% | Hacker-Tank 9% | Hacker-Mutant 3% | Hacker-Gunner Dominant Class ---------------- Hacker-Tank | -5/Wartown Resources | -5 ----------- Run | Tow Matter Collected 67 | 67 Remotely . | . Salvage Created 141 | 141 Parts . | . Haulers Intercepted . | . Recyclers Shooed . | . Parts Field Recycled . | . Retrieved Matter . | . Parts Self-Destructed . | . Prevented . | . Kills | -5 ------- Run | Tow Combat Hostiles Destroyed 3 | 3 Guns 3 | 3 Classes Destroyed 1 | 1 Player 3 | 3 Best Kill Streak 1 | 1 Combat Bots Only 1 | 1 Max Kills in Single Turn 1 | 1 Gunslinging . | . Exploded . | . Melee . | . Uniques/NPCs Destroyed . | . Combat | -5 -------- Run | Tow Damage Taken 638 | 638 Core 471 | 471 Absorbed by Shields . | . Redirected to Core 6293 | 6293 Core Remaining (%) . | . Volleys Fired 19 | 19 Largest 4 | 4 Hottest 212 | 212 Shots Fired 52 | 52 Gun 41 | 41 Cannon 10 | 10 Launcher 1 | 1 Special . | . Kinetic 25 | 25 Thermal 19 | 19 Explosive 1 | 1 Electromagnetic 7 | 7 Robot Hit Streak 23 | 23 Robot Miss Streak 1 | 1 Penetration Max 1 | 1 Secondary Targets . | . Shots Hit Robots 29 | 29 Core Hits 3 | 3 Critical Hits 2 | 2 Critical Kills . | . Critical Parts Destroyed 2 | 2 Melee Attacks . | . Impact . | . Slashing . | . Piercing . | . Sneak Attacks . | . Combat Hostiles . | . Follow-up Attacks . | . Damage Inflicted 677 | 677 Guns 569 | 569 Cannons 108 | 108 Explosions . | . Melee . | . Ramming . | . Kinetic 282 | 282 Thermal 271 | 271 Explosive . | . Electromagnetic 124 | 124 Impact . | . Slashing . | . Piercing . | . Highest Corruption . | . Average Corruption . | . Corruption Purged . | . Overload Shots . | . Overflow Damage . | . Projectiles . | . Explosions . | . Melee . | . Knockbacks . | . Impact . | . Kinetic . | . Secondary . | . Self-Inflicted Damage . | . Shots . | . Rammed . | . Targets Rammed . | . Kicked . | . Crushed . | . Highest Temperature 7407 | 7407 Average Temperature 605 | 605 Received Heat Transfer 135 | 135 Effects 113 | 113 Shutdowns 34 | 34 Energy Bleed 13 | 13 Interference 13 | 13 Matter Decay 14 | 14 Short Circuit 7 | 7 Damage (minor) 12 | 12 Damage (major) 11 | 11 Damage (core) 9 | 9 Siege Activations . | . Robots Corrupted . | . Combat Hostiles . | . Parts Fried . | . Impact Corruptions . | . Robots Melted . | . Combat Hostiles . | . Parts Melted 5 | 5 Heat Transferred 99 | 99 Parts Sabotaged . | . Parts Stolen . | . Parts Stripped . | . Power Chain Reactions . | . Missiles Intercepted . | . Alert | -5 ------- Run | Tow Peak Influence . | . Average Influence . | . Maximum Alert Level . | . Low Security (%) . | . Level 1 . | . Level 2 . | . Level 3 . | . Level 4 . | . Level 5 . | . High Security . | . Max Security . | . Squads Dispatched . | . Investigation . | . Extermination . | . Reinforcement . | . Assault . | . Garrison . | . Intercept . | . Construction Impeded . | . Haulers Reinforced . | . Stealth | -5 --------- Run | Tow Distress Signals . | . Communications Jammed . | . Distress Signals . | . Times Spotted 5 | 5 Peak Tracking Total 2 | 2 Tactical Retreats 1 | 1 Traps | -5 ------- Run | Tow Traps Triggered . | . Indirectly . | . Trap Hack Attempts . | . Triggered . | . Disarmed . | . Reprogrammed . | . Reused . | . Traps Extracted . | . Installed . | . Triggered . | . Machines | -5 ---------- Run | Tow Machines Disabled 1 | 1 Max in Single Turn 1 | 1 Machines Sabotaged . | . Garrisons Compromised . | . Overloaded Fab Kills . | . Fab Network Shutdowns . | . Hacking | -5 --------- Run | Tow Machines Accessed . | . Terminals . | . Fabricators . | . Repair Stations . | . Recycling Units . | . Scanalyzers . | . Garrison Access . | . Total Hacks . | . Successful . | . Failed . | . Catastrophic . | . Database Lockouts . | . Manual . | . Terminals . | . Fabricators . | . Repair Stations . | . Recycling Units . | . Scanalyzers . | . Garrison Access . | . Terminal Hacks . | . Fabricator Hacks . | . Repair Station Hacks . | . Recycling Unit Hacks . | . Scanalyzer . | . Garrison Access Hacks . | . Unauthorized Hacks . | . Terminals . | . Fabricators . | . Repair Stations . | . Recycling Units . | . Scanalyzers . | . Garrison Access . | . Data Cores Recovered . | . Used . | . Hacking Detections . | . Full Trace Events . | . Feedback Events . | . Feedback Blocked . | . Robot Schematics Acquired . | . Robots Built . | . Matter . | . Time . | . Total Robot Build Rating . | . Part Schematics Acquired . | . Parts Built . | . Matter . | . Time . | . Total Part Build Rating . | . Parts Repaired . | . Time . | . Parts Recycled . | . Recycled Matter . | . Retrieved Matter . | . Retrieved Components . | . Parts Scanalyzed . | . Part Schematics Acquired . | . Parts Damaged . | . Bothacking | -5 ------------ Run | Tow Used RIF Installer . | . Robots Hacked . | . Non-combat . | . Combat . | . Robot Hacks Applied . | . Relay Couplers Released . | . Robots Rewired . | . Allies Hacked . | . Hacks Repelled . | . Allies | -5 -------- Run | Tow Total Allies . | . Largest Group . | . Highest-Rated Group . | . Highest-Rated Ally . | . Total Orders . | . Ally Attacks . | . Total Damage . | . Kills . | . Allies Corrupted . | . Allies Melted . | . Intel | -5 ------- Run | Tow Robot Analysis Total . | . Derelict Logs Recovered . | . Drone Launches . | . Drone Recoveries . | . Exploration | -5 ------------- Run | Tow Turns Passed 1243 | 1243 Spaces Moved 558 | 558 Core 2 | 2 Treads 473 | 473 Legs 83 | 83 Wheels . | . Hover . | . Flight . | . Fastest Speed 105 | 105 Average Speed 149 | 149 Slowest Speed 1700 | 1700 Overloaded Moves . | . Propulsion Burnouts . | . Robots Hopped . | . Cave-ins Triggered . | . Exploration Rate (%) 17 | 17 Regions Visited 1 Branch Regions 1 Pre-discovered Areas . | . Known Exits Taken . | . Unknown Exits Taken . | . Scrap Searched . | . Spaces Dug . | . Terrain Destroyed 8 | 8 Melee . | . Projectile 3 | 3 AOE 5 | 5 Actions | -5 --------- Run | Tow Total 934 | 934 Wait 334 | 334 Move 558 | 558 Hop . | . Pick Up . | . Fast Attach 10 | 10 Attach . | . Detach . | . Swap 1 | 1 Drop 12 | 12 Fire 19 | 19 Melee . | . Ram . | . Kick . | . Crush . | . Escape Stasis . | . Rewire . | . Trap . | . Miscellaneous . | . Route ------- -5/Wartown History --------- Turn | Location | Event 123 | -5/Wartown | Core integrity fell below 50% 280 | -5/Wartown | Found Hvy. Reactive Plating 491 | -5/Wartown | Build established: Hacker-Tank 1220 | -5/Wartown | Core integrity fell below 20% 1245 | -5/Wartown | Core destroyed Last Messages --------------- 01218_ Adv. Heat Sink temporarily disabled. 01219_ Power failure, Lgt. Nuclear Core shutdown. 01219_ Power failure, Lgt. Fission Core shutdown. 01219_ Biometal Heavy Treads permanently disabled. 01219_ Overheating: Short circuit. 01220_ Overheating: Core damaged (-50). 01223_ Overheating: Matter decay (-51). 01226_ Overheating: Lgt. Nuclear Core damaged (-10). 01226_ Overheating: Adv. Heat Sink damaged (-9). 01226_ Overheating: Cloaking Device damaged (-12). 01227_ Overheating: Matter decay (-46). 01230_ Overheating: Energy bleed (-7). 01231_ Overheating: Energy bleed (-3). 01235_ Overheating: Energy bleed (-9). 01237_ Overheating: Matter decay (-55). 01238_ Overheating: Lgt. Fission Core damaged (-5). 01239_ Power failure, Lgt. Fission Core shutdown. 01240_ Power failure, Lgt. Nuclear Core shutdown. 01241_ Overheating: KE Penetrator damaged (-13). 01245_ Overheating: Core damaged (-47). Map ----- +----------------------------------------------------+ | ????????????????????????????????????????? | | ??????????????????????????????????????? | | ????????????????????????????????????? | | ?????????????????????????????????? | | ??????????????????????????????? | | ???????????????????????????? | | ????????????????????????? | | ??????????????????????? | | ?????????????? | | ??????????? | | ??????? | | ???? | | ??? | | ? | | ? | | ? | | ? | | ??? | | ############## | | # # | | " # | | " # | | " ; | | # ; | | # ; | | ""######## ; @ ###" " | | # # | | # ; # | | # ; ; | | # ; | | # ; | | = #""; ;;;;# | | = =+ | | " | | " """ """ | | + """ """ | | " """ """ | | ### | | # """ """ ; | | # " """ ? | | # " " """ ??? | | # ????? | | # ?????? | | # ??????? | | +++####### # # #####+# ####???????? | | #? # #?????? ??????????? | | # # #??????? ??????????? | | # # #??????????????????? | | #?" " # #??????????????????? | | # """ """ + #??????????????????? | +----------------------------------------------------+ Best States ------------- Heat Dissipation 82 Coolant Potential 100 Energy Generation 27 Energy Capacity 220 Matter Stores 300 Matter Capacity 300 Sight Range 16 Terrain Scan Density 10 Cloak Strength 2 Armor Coverage 825 Resistance: KI 75 Resistance: TH 65 Resistance: EX 35 Resistance: EM 35 Resistance: I 35 Resistance: S 35 Resistance: P 35 Evasion (%) 40 Recoil Reduction 4 Particle Charging 15 Offensive Hacking 20 Item Schematics ----------------- None Robot Schematics ------------------ None Fabricated ------------ Nothing Alien Tech Used ----------------- None Achievements -------------- None Challenges ------------ None Game ------ Seed MyomerThunderCharger Manual? 0 Play Time 00:06:43 Cumulative 211.1 hours Start 2020.07.18 @ 21:11:13 End 2020.07.18 @ 21:17:13 Sessions 1 Manual Loads 0 Difficulty Explorer Special Mode Experiment/BattleRoyale Game No. 112 Rogue 0 Adventurer 44 Explorer 68 Win Type - Total 3 Types 2/0/1/0/0/0/0 Lore% 53 Gallery% 79 Achievement% 57 Wizard Run 0 Options --------- ASCII 0 Keyboard 0 Movement Mouse Keybinds 0 Fullscreen 1 Font 18/TerminusBold Map View 76x50 Tactical HUD 1 Map Filters NONE Filters SATURATION(100) Steam 1 RUN: 20024238-2baa-48ca-9064-c2cba28f4c27